[Event "FIDE WYCC 2016 U18 girls"]
[Site "Khanty Mansiysk"]
[Date "2016.09.24"]
[Round "3.2"]
[White "Obolentseva, Alexandra"]
[Black "Abdusattorova, Bakhora"]
[Result "1-0"]
[ECO "E08"]
[WhiteElo "2331"]
[BlackElo "2177"]
[Annotator "Reinhold Goldau"]
[PlyCount "71"]
[EventDate "2016.09.??"]
[EventType "swiss"]
[EventRounds "11"]
[EventCountry "RUS"]
[SourceTitle "Youth Database"]
[Source "CBase R.Goldau"]
[SourceDate "2000.03.01"]
[TimeControl "40/5400+30:1800+30"]

1. d4 {[%emt 0:00:00]} Nf6 {[%emt 0:00:00]} 2. c4 {[%emt 0:00:00]} e6 {[%emt 0:
00:09]} 3. g3 {[%emt 0:00:00]} d5 {[%emt 0:00:13]} 4. Nf3 {[%emt 0:00:00]} Bb4+
{[%emt 0:00:15]} 5. Bd2 {[%emt 0:00:30]} Be7 {[%emt 0:00:09]} 6. Bg2 {[%emt 0:
00:35]} O-O {[%emt 0:00:16]} 7. O-O {[%emt 0:00:43]} Nbd7 {[%emt 0:00:18]} 8.
Qc2 {[%emt 0:01:07]} Ne4 {[%emt 0:00:36]} 9. Bf4 {[%emt 0:00:30]} c6 {[%emt 0:
00:42]} 10. Rd1 {[%emt 0:00:55]} g5 {[%emt 0:02:34]} 11. Bc1 {[%emt 0:02:10]}
f5 {[%emt 0:02:11]} 12. Nc3 {[%emt 0:03:47]} b6 {[%emt 0:11:57]} 13. Ne1 {
[%emt 0:13:31]} Bb7 {[%emt 0:05:06]} 14. Nxe4 {[%emt 0:01:41]} dxe4 {[%emt 0:
10:51]} 15. f3 {[%emt 0:10:43]} c5 {[%emt 0:06:41]} 16. fxe4 {[%emt 0:00:45]}
cxd4 {[%emt 0:01:24]} 17. exf5 {[%emt 0:00:55]} Bxg2 {[%emt 0:00:10]} 18. Kxg2
{[%emt 0:01:00]} Rxf5 {[%emt 0:27:58]} 19. Nf3 {[%emt 0:00:28]} Qf8 {[%emt 0:
02:23]} 20. Nxd4 {[%emt 0:01:49]} Rf2+ {[%emt 0:08:06]} 21. Kg1 {[%emt 0:00:08]
} Qh6 {[%emt 0:06:06]} 22. h4 {[%emt 0:00:24]} Raf8 {[%emt 0:01:13]} 23. Be3 {
[%emt 0:00:16]} R2f7 {[%emt 0:00:30]} 24. Qe4 {[%emt 0:06:10]} Nc5 {[%emt 0:01:
11]} 25. Qg4 {[%emt 0:01:51]} Qg7 {[%emt 0:02:33]} 26. hxg5 {[%emt 0:09:39]} h5
{[%emt 0:02:21]} 27. Qxh5 {[%emt 0:00:49]} Qe5 {[%emt 0:05:27]} 28. Bf4 {
[%emt 0:00:06]} Rxf4 {[%emt 0:00:42]} 29. gxf4 {[%emt 0:00:44]} Qxf4 {[%emt 0:
00:38]} 30. g6 {[%emt 0:02:47]} Qe3+ {[%emt 0:01:35]} 31. Kh1 {[%emt 0:00:18]}
Kg7 {[%emt 0:00:15]} 32. Qh7+ {[%emt 0:00:16]} Kf6 {[%emt 0:00:01]} 33. Rf1+ {
[%emt 0:00:08]} Ke5 {[%emt 0:00:28]} 34. Nf3+ {[%emt 0:02:33]} Kd6 {[%emt 0:00:
40]} 35. g7 {[%emt 0:00:36]} Rf6 {[%emt 0:00:59]} 36. Qh2+ {[%emt 0:00:08] Kd5}
1-0

[Event "FIDE WYCC 2016 U18 girls"]
[Site "Khanty Mansiysk"]
[Date "2016.09.24"]
[Round "3.3"]
[White "Ghukasyan, Siranush"]
[Black "Heinemann, Josefine"]
[Result "0-1"]
[ECO "B90"]
[WhiteElo "2106"]
[BlackElo "2242"]
[Annotator "Reinhold Goldau"]
[PlyCount "92"]
[EventDate "2016.09.??"]
[EventType "swiss"]
[EventRounds "11"]
[EventCountry "RUS"]
[SourceTitle "Youth Database"]
[Source "CBase R.Goldau"]
[SourceDate "2000.03.01"]
[TimeControl "40/5400+30:1800+30"]

1. e4 {[%emt 0:00:00]} c5 {[%emt 0:00:00]} 2. Nf3 {[%emt 0:00:00]} d6 {[%emt 0:
00:00]} 3. d4 {[%emt 0:00:00]} cxd4 {[%emt 0:00:00]} 4. Nxd4 {[%emt 0:00:00]}
Nf6 {[%emt 0:00:06]} 5. Nc3 {[%emt 0:00:00]} a6 {[%emt 0:00:04]} 6. Be3 {
[%emt 0:00:00]} e5 {[%emt 0:01:37]} 7. Nf3 {[%emt 0:00:07]} Be7 {[%emt 0:01:43]
} 8. Bc4 {[%emt 0:00:07]} O-O {[%emt 0:01:25]} 9. O-O {[%emt 0:00:06]} Qc7 {
[%emt 0:01:54]} 10. Bb3 {[%emt 0:00:09]} Be6 {[%emt 0:02:08]} 11. Nh4 {[%emt 0:
00:27]} g6 {[%emt 0:02:10]} 12. Bh6 {[%emt 0:00:48]} Re8 {[%emt 0:01:07]} 13.
Qd2 {[%emt 0:02:01]} Ng4 {[%emt 0:02:55]} 14. Bg5 {[%emt 0:07:30]} Bxg5 {
[%emt 0:02:03]} 15. Qxg5 {[%emt 0:00:07]} Qd8 {[%emt 0:00:17]} 16. Qxd8 {
[%emt 0:10:01]} Rxd8 {[%emt 0:00:05]} 17. Nd5 {[%emt 0:08:43]} Bxd5 {[%emt 0:
04:14]} 18. Bxd5 {[%emt 0:00:11]} Nc6 {[%emt 0:00:50]} 19. Rad1 {[%emt 0:03:01]
} Rac8 {[%emt 0:03:36]} 20. c3 {[%emt 0:05:49]} Kf8 {[%emt 0:06:29]} 21. Rd3 {
[%emt 0:08:01]} Ke7 {[%emt 0:04:41]} 22. g3 {[%emt 0:04:29]} Nf6 {[%emt 0:04:
53]} 23. f4 {[%emt 0:05:25]} Nxd5 {[%emt 0:08:54]} 24. Rxd5 {[%emt 0:03:29]}
Ke6 {[%emt 0:02:44]} 25. f5+ {[%emt 0:03:26]} Ke7 {[%emt 0:00:10]} 26. Ng2 {
[%emt 0:12:44]} Nb8 {[%emt 0:04:20]} 27. Ne3 {[%emt 0:06:10]} Nd7 {[%emt 0:03:
18]} 28. Rd2 {[%emt 0:01:00]} Nb6 {[%emt 0:02:13]} 29. g4 {[%emt 0:02:50]} Ke8
{[%emt 0:04:31]} 30. Kf2 {[%emt 0:04:25]} Nc4 {[%emt 0:03:10]} 31. Nxc4 {
[%emt 0:02:14]} Rxc4 {[%emt 0:00:04]} 32. Ke3 {[%emt 0:00:16]} d5 {[%emt 0:03:
54]} 33. exd5 {[%emt 0:00:25]} Rxg4 {[%emt 0:02:13]} 34. d6 {[%emt 0:03:15]} g5
{[%emt 0:05:20]} 35. Rff2 {[%emt 0:07:39]} f6 {[%emt 0:02:56]} 36. Rf3 {
[%emt 0:02:23]} Rh4 {[%emt 0:01:07]} 37. b3 {[%emt 0:00:31]} Kd7 {[%emt 0:01:
18]} 38. Rf1 {[%emt 0:00:36]} Rh3+ {[%emt 0:02:35]} 39. Ke4 {[%emt 0:00:03]}
Rxc3 {[%emt 0:00:47]} 40. Rfd1 {[%emt 0:00:00]} Rdc8 {[%emt 0:00:00]} 41. Rg1 {
[%emt 0:14:11]} h5 {[%emt 0:02:11]} 42. Rg3 {[%emt 0:03:19]} Rc2 {[%emt 0:02:
03]} 43. Rgd3 {[%emt 0:03:00]} Rxd2 {[%emt 0:00:13]} 44. Rxd2 {[%emt 0:00:06]}
Rc6 {[%emt 0:00:43]} 45. Ke3 {[%emt 0:00:45]} Rxd6 {[%emt 0:00:12]} 46. Rc2 {
[%emt 0:00:04]} Rd4 {[%emt 0:00:24] Kxd4} 0-1

[Event "FIDE WYCC 2016 U18 girls"]
[Site "Khanty Mansiysk"]
[Date "2016.09.24"]
[Round "3.4"]
[White "Khomeriki, Nino"]
[Black "Marjina, Arina"]
[Result "1-0"]
[ECO "E63"]
[WhiteElo "2357"]
[BlackElo "2076"]
[Annotator "Reinhold Goldau"]
[PlyCount "55"]
[EventDate "2016.09.??"]
[EventType "swiss"]
[EventRounds "11"]
[EventCountry "RUS"]
[SourceTitle "Youth Database"]
[Source "CBase R.Goldau"]
[SourceDate "2000.03.01"]
[TimeControl "40/5400+30:1800+30"]

1. d4 {[%emt 0:00:00]} Nf6 {[%emt 0:00:30]} 2. c4 {[%emt 0:00:00]} g6 {[%emt 0:
00:10]} 3. Nc3 {[%emt 0:00:22]} Bg7 {[%emt 0:00:15]} 4. Nf3 {[%emt 0:00:07]}
O-O {[%emt 0:00:13]} 5. g3 {[%emt 0:00:31]} d6 {[%emt 0:00:12]} 6. Bg2 {
[%emt 0:00:07]} Nc6 {[%emt 0:00:22]} 7. O-O {[%emt 0:00:22]} a6 {[%emt 0:00:10]
} 8. Bf4 {[%emt 0:00:21]} Rb8 {[%emt 0:00:29]} 9. Rc1 {[%emt 0:00:25]} b5 {
[%emt 0:00:41]} 10. Nd5 {[%emt 0:01:09]} bxc4 {[%emt 0:00:34]} 11. Nxf6+ {
[%emt 0:00:17]} exf6 {[%emt 0:00:13]} 12. Rxc4 {[%emt 0:00:34]} Ne7 {[%emt 0:
00:22]} 13. b3 {[%emt 0:00:25]} Bb7 {[%emt 0:02:48]} 14. Qc1 {[%emt 0:06:38]}
Nd5 {[%emt 0:06:56]} 15. Bd2 {[%emt 0:01:13]} Re8 {[%emt 0:06:56]} 16. e3 {
[%emt 0:07:43]} Rc8 {[%emt 0:10:28]} 17. Ba5 {[%emt 0:05:55]} Nb6 {[%emt 0:06:
41]} 18. Rc3 {[%emt 0:09:31]} Qd7 {[%emt 0:03:15]} 19. Ne5 {[%emt 0:12:17]}
Rxe5 {[%emt 0:14:36]} 20. dxe5 {[%emt 0:04:15]} Bxg2 {[%emt 0:00:18]} 21. Kxg2
{[%emt 0:00:30]} Nd5 {[%emt 0:01:42]} 22. Rd3 {[%emt 0:02:32]} Qb5 {[%emt 0:03:
18]} 23. Qc4 {[%emt 0:08:13]} Qxa5 {[%emt 0:05:56]} 24. Rxd5 {[%emt 0:00:18]}
Qb6 {[%emt 0:00:31]} 25. exd6 {[%emt 0:00:52]} Qb7 {[%emt 0:00:57]} 26. Rc1 {
[%emt 0:01:05]} c5 {[%emt 0:04:08]} 27. d7 {[%emt 0:00:55]} Rd8 {[%emt 0:00:58]
} 28. Qxc5 {[%emt 0:00:07]} 1-0